bitfinex-derivatives/quotes_BTCF0:USTF0_20251118
["timestamp","ask_amount","ask_price","bid_price","bid_amount"]
[1763456656587,0.00010805,91189.0,91188.0,0.05716443]
[1763456658804,0.02259805,91189.0,91188.0,0.04392443]
[1763456659194,0.00010805,91189.0,91188.0,0.05716443]
[1763456659591,0.01374,91224.0,91206.0,0.0448]
[1763456659805,0.01374,91224.0,91206.0,0.05804]
[1763456660701,0.0110868,91220.0,91206.0,0.05804]
[1763456660900,0.00116443,91207.0,91206.0,0.05804]
[1763456661201,0.00216443,91207.0,91206.0,0.05804]
[1763456661592,0.04650443,91207.0,91188.0,0.01340443]
[1763456661794,0.04434,91201.0,91200.0,0.0458]
[1763456662201,0.04434,91201.0,91200.0,0.001]
[1763456662504,0.04434,91201.0,91200.0,0.0458]
[1763456662895,0.02231,91206.0,91205.0,0.0448]
[1763456663095,0.04434,91206.0,91205.0,0.0448]
[1763456664505,0.04434,91189.0,91188.0,0.04496443]
[1763456665604,0.04434,91189.0,91188.0,0.02206443]
[1763456665795,0.04434,91189.0,91188.0,0.04496443]
[1763456665997,0.04434,91189.0,91188.0,0.00016443]
[1763456667106,0.04434,91189.0,91165.0,0.2654]
[1763456667297,0.0469207,91180.0,91179.0,0.0216]
[1763456667699,0.04499,91167.0,91166.0,0.02187423]
[1763456667997,0.04499,91167.0,91166.0,0.04483423]
[1763456668304,0.04499,91167.0,91166.0,0.00027423]
[1763456668606,0.04499,91151.0,91150.0,0.02935105]
[1763456668798,0.04499,91151.0,91150.0,0.0226]
[1763456668996,0.04499,91151.0,91150.0,0.04556]
[1763456669201,0.00219803,91150.0,91137.0,0.04467983]
[1763456669397,0.00016452,91153.0,91152.0,0.04456]
[1763456669596,0.00016452,91162.0,91161.0,0.04456]
[1763456669905,0.04515452,91162.0,91161.0,0.04456]
[1763456671217,0.00016452,91162.0,91161.0,0.04456]
[1763456671409,0.04515452,91162.0,91161.0,0.04456]
[1763456671908,0.00219803,91160.0,91146.0,0.0126]
[1763456672203,0.22077343,91160.0,91146.0,0.0126]
[1763456672501,0.22077343,91160.0,91146.0,0.0116]
[1763456672502,0.00219803,91160.0,91146.0,0.0116]
[1763456672700,0.04499,91147.0,91146.0,0.05616]
[1763456673203,0.04499,91147.0,91137.0,0.00011983]
[1763456674208,0.04499,91138.0,91137.0,0.04467983]
[1763456674405,0.04499,91138.0,91137.0,0.00011983]
[1763456674807,0.00219803,91140.0,91139.0,0.04456]
[1763456675314,0.04499,91161.0,91160.0,0.04456]
[1763456675802,0.00016452,91162.0,91161.0,0.04456]
[1763456676211,0.04515452,91162.0,91161.0,0.04456]
[1763456677014,0.04615452,91162.0,91161.0,0.04456]
[1763456677403,0.04499,91158.0,91157.0,0.04456]
[1763456677605,0.04499,91147.0,91137.0,0.00011983]
[1763456677803,0.00219803,91150.0,91149.0,0.04456]
[1763456680117,0.02546803,91150.0,91149.0,0.04456]
[1763456680408,0.00219803,91150.0,91149.0,0.04456]
[1763456682611,0.04718803,91150.0,91149.0,0.04456]
[1763456683011,0.02546803,91150.0,91149.0,0.04456]
[1763456683208,0.00219803,91150.0,91149.0,0.04456]
[1763456689718,0.00219803,91150.0,91149.0,0.0216]
[1763456689719,0.04718803,91150.0,91149.0,0.0216]
[1763456689923,0.04718803,91150.0,91149.0,0.04456]
[1763456690114,0.04718803,91150.0,91137.0,0.00011983]
[1763456690314,0.26576343,91150.0,91137.0,0.00011983]
[1763456690516,0.02327,91138.0,91137.0,0.04467983]
[1763456690809,0.04499,91138.0,91137.0,0.04467983]
[1763456691711,0.04499,91138.0,91137.0,0.02171983]
[1763456692118,0.04499,91138.0,91137.0,0.00011983]
[1763456692325,0.04499,91138.0,91120.0,0.0126]
[1763456692326,0.04499,91127.0,91120.0,0.0126]
[1763456692527,0.04499,91127.0,91126.0,0.04483435]
[1763456692823,0.00219803,91130.0,91129.0,0.04456]
[1763456693219,0.04718803,91130.0,91129.0,0.04456]
[1763456693420,0.00228182,91130.0,91129.0,0.04456]
[1763456693627,8.379e-05,91130.0,91129.0,0.04456]
[1763456694927,8.379e-05,91130.0,91129.0,0.04556]
[1763456696627,0.00228182,91130.0,91129.0,0.04556]
[1763456696928,0.02555182,91130.0,91129.0,0.04556]
[1763456697426,0.04469182,91130.0,91129.0,0.001]
[1763456697629,8.379e-05,91130.0,91129.0,0.04416]
[1763456697928,0.04469182,91130.0,91129.0,0.04416]
[1763456699125,0.02364182,91130.0,91129.0,0.04416]
[1763456699334,0.00228182,91130.0,91129.0,0.04416]
[1763456699526,8.379e-05,91130.0,91129.0,0.04416]
[1763456700629,4.52e-06,91136.0,91135.0,0.04316]
[1763456701334,0.039358,91146.0,91145.0,0.04316]
[1763456701534,0.03941661,91146.0,91145.0,0.04316]
[1763456701734,5.861e-05,91146.0,91145.0,0.04316]
[1763456705732,5.861e-05,91146.0,91140.0,0.01352]
[1763456705733,5.861e-05,91146.0,91140.0,0.02106]
[1763456705934,0.04241,91141.0,91140.0,0.02106]
[1763456706134,0.04241,91141.0,91140.0,0.04316]
[1763456706538,0.04241,91137.0,91136.0,0.02122452]
[1763456706744,0.04241,91137.0,91136.0,0.00016452]
[1763456706934,0.04241,91137.0,91136.0,0.04332452]
[1763456707737,0.00219803,91140.0,91139.0,0.04316]
[1763456708336,0.04460803,91140.0,91139.0,0.04316]
[1763456708936,0.00219803,91140.0,91139.0,0.04316]
[1763456709142,5.861e-05,91146.0,91145.0,0.04316]
[1763456712350,0.04241,91141.0,91140.0,0.04316]
[1763456712948,0.04241,91137.0,91136.0,0.03098452]
[1763456713452,0.04241,91137.0,91136.0,0.07414452]
[1763456713652,0.04241,91137.0,91136.0,0.04332452]
[1763456715243,0.081768,91137.0,91136.0,0.04332452]
[1763456715440,0.04241,91137.0,91136.0,0.04332452]
[1763456716254,0.04241,91137.0,91136.0,0.00016452]
[1763456716458,0.01510803,91140.0,91126.0,0.00027435]
[1763456716459,0.02136,91127.0,91126.0,0.04343435]
[1763456716659,5.861e-05,91127.0,91126.0,0.04343435]
[1763456717860,5.861e-05,91127.0,91126.0,0.04443435]
[1763456718053,0.04246861,91127.0,91126.0,0.04443435]
[1763456718254,0.04246861,91127.0,91126.0,0.00127435]
[1763456718866,0.08196167,91127.0,91126.0,0.00127435]
[1763456719162,0.04246861,91127.0,91126.0,0.00127435]
[1763456719363,0.10170821,91127.0,91126.0,0.00127435]
[1763456720255,0.10171392,91127.0,91126.0,0.00127435]
[1763456720458,0.04246861,91127.0,91126.0,0.00127435]
[1763456720863,0.04246861,91127.0,91126.0,0.02233435]
[1763456721161,0.04246861,91127.0,91126.0,0.00127435]
[1763456721759,0.05358461,91127.0,91126.0,0.00127435]
[1763456722463,0.04558,91111.0,91110.0,0.04546]
[1763456722659,0.04563861,91111.0,91110.0,0.04546]
[1763456723358,0.04563861,91111.0,91106.0,0.03936449]
[1763456723359,0.00219803,91110.0,91106.0,0.03936449]
[1763456723559,0.02292,91096.0,91095.0,0.05902992]
[1763456723754,0.04558,91093.0,91091.0,0.05902992]
[1763456723955,0.04558,91092.0,91091.0,0.05902992]
[1763456724261,0.04558,91096.0,91095.0,0.04546]
[1763456725254,0.00219803,91100.0,91086.0,0.04573447]
[1763456726148,0.04558,91087.0,91086.0,0.00027447]
[1763456726362,0.00219803,91090.0,91089.0,0.04546]
[1763456726760,0.04777803,91090.0,91089.0,0.02263]
[1763456726961,0.04595,91087.0,91086.0,0.00027447]
[1763456727862,0.00219803,91090.0,91075.0,0.04312007]
[1763456727863,0.02311,91076.0,91075.0,0.04312007]
[1763456728063,0.0464,91076.0,91075.0,0.04301]
[1763456728260,0.00219803,91080.0,91075.0,0.04301]
[1763456728451,0.04859803,91080.0,91079.0,0.04301]
[1763456728654,0.06236803,91080.0,91079.0,0.04301]
[1763456728966,0.0624781,91080.0,91079.0,0.04301]
[1763456729150,0.0624781,91080.0,91070.0,0.01148]
[1763456729356,0.0464,91071.0,91070.0,0.04301]
[1763456729751,0.02311,91071.0,91070.0,0.04301]
[1763456729959,0.06028007,91080.0,91079.0,0.02125]
[1763456730160,0.0624781,91080.0,91079.0,0.02125]
[1763456731362,0.0464,91073.0,91072.0,0.07562]
[1763456731564,0.0160781,91080.0,91079.0,0.04301]
[1763456731565,0.04651007,91080.0,91079.0,0.04301]
[1763456731760,0.0624781,91080.0,91079.0,0.04301]
[1763456731956,0.0624781,91080.0,91072.0,0.07562]
[1763456731957,0.0464,91073.0,91072.0,0.07562]
[1763456732161,0.0464,91073.0,91072.0,0.01675215]
[1763456732162,0.04651007,91073.0,91072.0,0.01675215]
[1763456733264,0.04651007,91073.0,91050.0,0.01316]
[1763456733265,0.01596803,91070.0,91050.0,0.01316]
[1763456734268,0.04859803,91070.0,91069.0,0.04301]
[1763456734867,0.02530803,91070.0,91069.0,0.04301]
[1763456735266,0.00219803,91070.0,91069.0,0.04301]
[1763456737270,0.04859803,91070.0,91069.0,0.04301]
[1763456738771,0.0464,91062.0,91061.0,0.06943]
[1763456738969,0.06017,91070.0,91069.0,0.04301]
[1763456739266,0.00219803,91070.0,91069.0,0.04301]
[1763456739863,0.01377,91090.0,91084.0,0.04301]
[1763456740568,0.04656462,91085.0,91084.0,0.04301]
[1763456741770,0.00016462,91085.0,91084.0,0.04301]
[1763456741965,0.06236803,91080.0,91079.0,0.02125]
[1763456742165,0.06236803,91080.0,91079.0,0.04301]
[1763456742876,0.06236803,91080.0,91061.0,0.05586864]
[1763456743062,0.06236803,91080.0,91061.0,0.02642]
[1763456743266,0.06336803,91080.0,91061.0,0.02642]
[1763456745566,0.02311,91062.0,91061.0,0.06943]
[1763456745763,0.0464,91062.0,91061.0,0.06943]
[1763456745962,0.0464,91062.0,91061.0,0.04301]
[1763456747272,0.01377,91070.0,91050.0,0.07245864]
[1763456747273,0.02311,91051.0,91050.0,0.07245864]
[1763456747779,0.01393471,91060.0,91050.0,0.04301]
[1763456748074,0.01613274,91060.0,91050.0,0.04301]
[1763456748272,0.01613274,91060.0,91051.0,0.02944864]
[1763456748779,0.06253274,91060.0,91059.0,0.02125]
[1763456748975,0.06253274,91060.0,91059.0,0.04301]
[1763456748976,0.00236274,91060.0,91059.0,0.04301]
[1763456749369,0.03924274,91060.0,91059.0,0.04301]
[1763456749770,0.00236274,91060.0,91059.0,0.04301]
[1763456750277,0.00016471,91060.0,91059.0,0.1529527]
[1763456750470,0.06017,91080.0,91060.0,0.00841]
[1763456750672,0.06236803,91080.0,91060.0,0.27539521]
[1763456750872,0.02530803,91080.0,91079.0,0.04301]
[1763456751076,0.06236803,91080.0,91079.0,0.04301]
[1763456752078,0.0464,91071.0,91070.0,0.00016471]
[1763456752278,0.0464,91071.0,91070.0,0.04317471]
[1763456752971,0.0464,91071.0,91070.0,0.02141471]
[1763456753169,0.0464,91071.0,91070.0,0.00016471]
[1763456753370,0.0474,91071.0,91070.0,0.00016471]
[1763456753982,0.0474,91071.0,91051.0,0.02984]
[1763456753983,0.0464,91052.0,91051.0,0.07285]
[1763456754481,0.0464,91052.0,91051.0,0.04301]
[1763456754674,0.06017,91060.0,91059.0,0.04301]
[1763456754875,0.06236803,91060.0,91059.0,0.04301]
[1763456755771,0.01596803,91060.0,91046.0,0.04328459]
[1763456755968,0.06236803,91060.0,91059.0,0.04301]
[1763456756578,0.06236803,91060.0,91046.0,0.00027459]
[1763456756877,0.06236803,91060.0,91059.0,0.02125]
[1763456757079,0.06236803,91060.0,91059.0,0.04356]
[1763456757278,0.01596803,91060.0,91046.0,0.04453459]
[1763456757485,0.05544432,91060.0,91046.0,0.04453459]
[1763456757980,0.09792432,91060.0,91059.0,0.02195]
[1763456758180,0.09792432,91060.0,91046.0,0.00027459]
[1763456758373,0.04248,91052.0,91051.0,0.07502]
[1763456760282,0.02114,91052.0,91051.0,0.07502]
[1763456760881,0.03947629,91055.0,91054.0,0.04197222]
[1763456761085,0.07398443,91060.0,91051.0,0.03076]
[1763456761086,0.00219803,91060.0,91059.0,0.04006]
[1763456761380,0.04170571,91060.0,91059.0,0.04006]
[1763456761870,0.00219803,91060.0,91059.0,0.04006]
[1763456762974,0.05937914,91069.0,91059.0,0.04006]
[1763456762975,0.03950768,91066.0,91065.0,0.04006]
[1763456763277,0.00016471,91069.0,91063.0,0.03945769]
[1763456763472,0.00016471,91069.0,91060.0,0.11675]
[1763456763473,0.07298443,91090.0,91068.0,0.02961216]
[1763456763678,0.01596803,91090.0,91080.0,0.27539521]
[1763456763868,0.01377,91090.0,91083.0,0.02961216]
[1763456764067,0.01596803,91090.0,91086.0,0.02961216]
[1763456764273,0.01596803,91090.0,91085.0,0.02961216]
[1763456764473,0.01596803,91090.0,91086.0,0.02961216]
[1763456764782,0.01377,91090.0,91085.0,0.02961216]
[1763456764985,0.01596803,91090.0,91086.0,0.02961216]
[1763456765474,0.00016471,91097.0,91086.0,0.02961216]
[1763456765680,0.003,91090.0,91086.0,0.02961216]
[1763456766385,0.003,91090.0,91085.0,0.02961216]
[1763456766679,0.06114803,91090.0,91085.0,0.02961216]
[1763456766875,0.06114803,91090.0,91083.0,0.02961216]
[1763456767275,0.02114,91084.0,91082.0,0.02961216]
[1763456767982,0.04248,91083.0,91081.0,0.02961216]
[1763456768182,0.04248,91081.0,91080.0,0.02961216]
[1763456768481,0.04248,91079.0,91078.0,0.02977687]
[1763456768682,0.04248,91079.0,91078.0,0.00016471]
[1763456769278,0.04248,91079.0,91078.0,0.02970345]
[1763456769574,0.001,91084.0,91078.0,0.00016471]
[1763456769772,0.001,91084.0,91081.0,0.02953516]
[1763456769972,0.001,91084.0,91082.0,0.02953516]
[1763456770378,0.001,91084.0,91078.0,0.00016471]
[1763456770379,0.001,91084.0,91081.0,0.02953516]
[1763456770678,0.03461,91120.0,91090.0,0.1099045]
[1763456770879,0.03680803,91120.0,91100.0,0.27539521]
[1763456771077,0.03680803,91120.0,91096.0,0.02950139]
[1763456771284,0.03680803,91120.0,91100.0,0.3048966]
[1763456771482,0.03680803,91120.0,91101.0,0.02950139]
[1763456771784,0.03697274,91120.0,91101.0,0.0296661]
[1763456771970,0.03797274,91120.0,91101.0,0.0296661]
[1763456772175,0.03797274,91120.0,91101.0,0.00016471]
[1763456773977,0.01683274,91120.0,91110.0,0.27539521]
[1763456774274,0.03797274,91120.0,91111.0,0.1098795]
[1763456774473,0.05931274,91120.0,91102.0,0.1098895]
[1763456774679,0.05931274,91120.0,91103.0,0.1098891]
[1763456774880,0.05931274,91120.0,91101.0,0.00016471]
[1763456776000,0.05595,91102.0,91101.0,0.00016471]
[1763456779090,0.05695,91102.0,91101.0,0.00016471]
[1763456779680,0.05595,91102.0,91101.0,0.00016471]
[1763456779879,0.05695,91102.0,91101.0,0.00016471]
[1763456786093,0.05595,91102.0,91101.0,0.00016471]
[1763456786291,0.05695,91102.0,91101.0,0.00016471]
[1763456789391,0.05795,91102.0,91101.0,0.00016471]
[1763456790388,0.04359,91072.0,91071.0,0.02943156]
[1763456790689,0.04578803,91070.0,91063.0,0.02943156]
[1763456790884,0.04359,91061.0,91060.0,0.02943156]
[1763456791093,0.04359,91061.0,91056.0,0.03933519]
[1763456791094,0.02442803,91060.0,91053.0,0.02943156]
[1763456791592,0.02442803,91060.0,91053.0,0.13938106]
[1763456791794,0.00016471,91066.0,91062.0,0.109938]
[1763456792092,0.21910897,91100.0,91050.0,0.21910897]
[1763456792093,0.03528,91080.0,91066.0,0.1099332]
[1763456792398,0.02223,91062.0,91060.0,0.02943156]
[1763456792596,0.03747803,91070.0,91060.0,0.02943156]
[1763456792793,0.03747803,91070.0,91059.0,0.02943156]
[1763456793097,0.01305,91060.0,91058.0,0.02943156]
[1763456793300,0.01305,91060.0,91059.0,0.02955153]
[1763456793798,0.05883803,91060.0,91059.0,0.02955153]
[1763456794392,0.04359,91059.0,91057.0,0.02955153]
[1763456794584,0.04359,91057.0,91056.0,0.02955153]
[1763456794784,0.01524803,91060.0,91050.0,0.21910897]
[1763456794785,0.04359,91056.0,91054.0,0.02955153]
[1763456795003,0.01524803,91060.0,91054.0,0.02955153]
[1763456795004,0.05883803,91060.0,91054.0,0.02955153]
[1763456795309,0.05883803,91060.0,91053.0,0.02955153]
[1763456795487,0.05883803,91060.0,91050.0,0.2486605]
[1763456795488,0.01524803,91060.0,91050.0,0.2486605]
[1763456795688,0.01524803,91060.0,91051.0,0.1099519]
[1763456796500,0.02223,91051.0,91050.0,0.21910897]
[1763456796697,0.04578803,91050.0,91049.0,0.02955153]
[1763456796894,0.04578803,91050.0,91048.0,0.02955153]
[1763456797295,0.04578803,91050.0,91047.0,0.26612471]
[1763456798999,0.04359,91048.0,91047.0,0.26612471]
[1763456799306,0.05664,91060.0,91047.0,0.37608031]
[1763456799495,0.05883803,91060.0,91050.0,0.32906177]
[1763456799695,0.01305,91060.0,91053.0,0.1099489]
[1763456800195,0.01524803,91060.0,91053.0,0.1099489]
[1763456800396,0.05883803,91060.0,91050.0,0.21910897]
[1763456800691,0.05883803,91060.0,91051.0,0.1099519]
[1763456801003,0.05883803,91060.0,91050.0,0.21910897]
[1763456801004,0.01305,91053.0,91050.0,0.32906087]
[1763456801195,0.01305,91053.0,91050.0,0.1099519]
[1763456802094,0.01305,91053.0,91048.0,0.1099548]
[1763456802398,0.01305,91053.0,91051.0,0.1099509]
[1763456803202,0.01305,91053.0,91047.0,0.40563194]
[1763456803399,0.01305,91053.0,91047.0,0.26612471]
[1763456804000,0.01305,91053.0,91047.0,0.37608121]
[1763456804199,0.01305,91053.0,91049.0,0.109953]
[1763456805002,0.05664,91070.0,91050.0,0.1098]
[1763456805312,0.05883803,91070.0,91060.0,0.21910897]
[1763456805504,0.05883803,91070.0,91060.0,0.32904917]
[1763456805701,0.01305,91062.0,91060.0,0.21910897]
[1763456805896,0.01305,91062.0,91058.0,0.1099434]
[1763456806399,0.01305,91062.0,91060.0,0.1099398]
[1763456807004,0.01405,91062.0,91060.0,0.1099398]
[1763456807912,0.001,91062.0,91060.0,0.1099398]
[1763456808408,0.01305,91080.0,91071.0,0.1099272]
[1763456808605,0.01305,91080.0,91072.0,0.26608]
[1763456808606,0.01524803,91080.0,91072.0,0.26608]
[1763456809007,0.01524803,91080.0,91072.0,0.3760056]
[1763456809208,0.01524803,91080.0,91072.0,0.26608]
[1763456809411,0.02239471,91074.0,91072.0,0.26608]
[1763456809600,0.04375471,91074.0,91072.0,0.26608]
[1763456809801,0.04359,91073.0,91072.0,0.26608]
[1763456811914,0.04359,91060.0,91059.0,0.02955153]
[1763456812206,0.04359,91058.0,91057.0,0.02955153]
[1763456812514,0.04359,91058.0,91057.0,0.26604]
[1763456813709,0.02223,91058.0,91057.0,0.26604]
[1763456813914,0.00219803,91060.0,91058.0,0.1099435]
[1763456814610,0.00219803,91060.0,91058.0,0.13949503]
[1763456814810,0.04359,91059.0,91058.0,0.02955153]
[1763456815017,0.04359,91058.0,91057.0,0.29559153]
[1763456815415,0.04359,91058.0,91057.0,0.26604]
[1763456816018,0.00219803,91060.0,91057.0,0.26604]
[1763456816201,0.00219803,91060.0,91058.0,0.0295571]
[1763456816519,0.04578803,91060.0,91059.0,0.0295571]
[1763456816908,0.04578803,91060.0,91058.0,0.0295571]
[1763456817314,0.04578803,91060.0,91059.0,0.0295571]
[1763456818309,0.04578803,91060.0,91057.0,0.26604]
[1763456819010,0.04578803,91060.0,91058.0,0.1099435]
[1763456819513,0.04359,91060.0,91057.0,0.26604]
[1763456819815,0.0449,91058.0,91057.0,0.26604]
[1763456820213,0.00219803,91060.0,91058.0,0.1099435]
[1763456820418,0.04709803,91060.0,91057.0,0.30537519]
[1763456820711,0.00219803,91060.0,91058.0,0.1099435]
[1763456821105,0.02500803,91060.0,91058.0,0.1099435]
[1763456821310,0.04709803,91060.0,91057.0,0.41531989]
[1763456821720,0.04709803,91060.0,91057.0,0.30537519]
[1763456822019,0.0449,91058.0,91057.0,0.30537519]
[1763456823313,0.0449,91058.0,91057.0,0.26604]
[1763456825112,0.00219803,91060.0,91058.0,0.1099435]
[1763456825417,0.02500803,91060.0,91058.0,0.16908434]
[1763456825619,0.00219803,91060.0,91058.0,0.16908434]
[1763456825822,0.02500803,91060.0,91058.0,0.16908434]
[1763456826625,0.04709803,91060.0,91058.0,0.16908434]
[1763456826918,0.05795,91071.0,91060.0,0.109941]
[1763456827223,0.04709803,91070.0,91069.0,0.0295717]
[1763456827412,0.04709803,91070.0,91069.0,0.2954517]
[1763456828315,0.04709803,91070.0,91069.0,0.26588]
[1763456829313,0.04709803,91070.0,91069.0,0.2954517]
[1763456830324,0.04809803,91070.0,91069.0,0.2954517]
[1763456830822,0.04709803,91070.0,91069.0,0.2954517]
[1763456832020,0.04709803,91070.0,91069.0,0.26588]
[1763456832925,0.04709803,91070.0,91069.0,0.2954517]
[1763456833325,0.04709803,91070.0,91069.0,0.26588]
[1763456833825,0.04809803,91070.0,91069.0,0.26588]
[1763456834419,0.04709803,91070.0,91069.0,0.26588]
[1763456834817,0.04709803,91070.0,91065.0,0.03942894]
[1763456835016,0.0449,91066.0,91064.0,0.03942894]
[1763456835217,0.0449,91063.0,91062.0,0.26588]
[1763456837320,0.0459,91063.0,91062.0,0.26588]
[1763456838425,0.0449,91055.0,91054.0,0.03942894]
[1763456838727,0.01276,91056.0,91047.0,0.00016471]
[1763456838728,0.05766,91048.0,91047.0,0.00016471]
[1763456840623,0.05766,91048.0,91047.0,0.02341471]
[1763456840921,0.03944847,91068.0,91049.0,0.04452]
[1763456841219,0.0449,91063.0,91062.0,0.04452]
[1763456841420,0.05795,91071.0,91070.0,0.02325]
[1763456841624,0.05795,91071.0,91070.0,0.04452]
[1763456842824,0.02292,91061.0,91060.0,0.04466]
[1763456844422,0.01305,91071.0,91060.0,0.04466]
[1763456844630,0.05887,91071.0,91070.0,0.02261]
[1763456846335,0.02292,91071.0,91070.0,0.04466]
[1763456846737,0.04582,91071.0,91070.0,0.04466]
[1763456847235,0.05867,91071.0,91070.0,0.04466]
[1763456847426,0.05967,91071.0,91070.0,0.04466]
[1763456847928,0.02242,91061.0,91060.0,0.02132]
[1763456848128,0.02242,91061.0,91060.0,0.04265]
[1763456848328,0.0435,91061.0,91060.0,0.04265]
[1763456849723,0.05735,91071.0,91070.0,0.04265]
[1763456850332,0.05635,91071.0,91070.0,0.04265]
[1763456851129,0.05735,91071.0,91070.0,0.04265]
[1763456851535,0.00219803,91070.0,91053.0,0.17684004]
[1763456851729,0.04569803,91070.0,91069.0,0.02132]
[1763456851933,0.04569803,91070.0,91069.0,0.04265]
[1763456855043,0.04669803,91070.0,91069.0,0.04265]
[1763456855342,0.04569803,91070.0,91069.0,0.04265]
[1763456855542,0.04669803,91070.0,91069.0,0.04265]
[1763456856034,0.04669803,91070.0,91053.0,0.00775]
[1763456856233,0.0435,91064.0,91063.0,0.04265]
[1763456856439,0.05635,91064.0,91063.0,0.04265]
[1763456857234,0.0435,91064.0,91063.0,0.04265]
[1763456861340,0.05635,91064.0,91063.0,0.04265]
[1763456865829,0.0435,91064.0,91063.0,0.04265]
[1763456866030,0.0435,91072.0,91071.0,0.04265]
[1763456866337,0.00016471,91074.0,91073.0,0.04265]
[1763456866543,0.04366471,91074.0,91073.0,0.04265]
[1763456867538,0.04466471,91074.0,91073.0,0.04265]
[1763456868138,0.04366471,91074.0,91073.0,0.04265]
[1763456868343,0.0435,91065.0,91064.0,0.2872]
[1763456868640,0.04569803,91070.0,91069.0,0.04265]
[1763456871336,0.0435,91065.0,91064.0,0.34784116]
[1763456873440,0.0435,91065.0,91064.0,0.30853]
[1763456876743,0.05635,91072.0,91071.0,0.04265]
[1763456878342,0.05735,91072.0,91071.0,0.04265]
[1763456878542,0.04403,91065.0,91064.0,0.2871]
[1763456878948,0.04403,91065.0,91064.0,0.30958]
[1763456880044,0.04503,91072.0,91071.0,0.0437]
[1763456880752,0.001,91072.0,91071.0,0.0437]
[1763456880934,0.00016471,91074.0,91073.0,0.0437]
[1763456881340,0.02185471,91074.0,91073.0,0.0437]
[1763456881646,0.04419471,91074.0,91073.0,0.0437]
[1763456883736,0.04519471,91074.0,91073.0,0.0437]
[1763456884539,0.00219803,91070.0,91067.0,0.03931116]
[1763456884741,0.04403,91068.0,91067.0,0.0437]
[1763456885157,0.04403,91068.0,91066.0,0.03931116]
[1763456885158,0.04403,91067.0,91066.0,0.0437]
[1763456889648,0.00219803,91070.0,91069.0,0.0437]
[1763456889944,0.00219803,91070.0,91064.0,0.30519116]
[1763456889945,0.05920803,91070.0,91064.0,0.03931116]
[1763456890142,0.04622803,91070.0,91069.0,0.0437]
[1763456890355,0.00219803,91070.0,91069.0,0.0437]
[1763456891049,0.02185471,91074.0,91073.0,0.0437]
[1763456891355,0.04419471,91074.0,91073.0,0.0437]
[1763456891553,0.00016471,91074.0,91073.0,0.0437]
[1763456891746,0.04403,91089.0,91088.0,0.0437]
[1763456893053,0.04403,91082.0,91081.0,0.30954]
[1763456893447,0.04403,91082.0,91081.0,0.28706]
[1763456893844,0.04403,91082.0,91081.0,0.30954]
[1763456894558,0.04403,91082.0,91081.0,0.0437]
[1763456894749,0.04622803,91080.0,91079.0,0.00016471]
[1763456897252,0.04722803,91080.0,91079.0,0.00016471]
[1763456900365,0.04722803,91080.0,91079.0,0.04344471]
[1763456900958,0.04622803,91080.0,91079.0,0.04344471]
[1763456901165,0.04722803,91080.0,91079.0,0.04344471]
[1763456901665,0.04722803,91080.0,91079.0,0.02169471]
[1763456901960,0.04722803,91080.0,91079.0,0.04344471]
[1763456902171,0.04722803,91080.0,91079.0,0.00016471]
[1763456902468,0.04722803,91080.0,91079.0,0.02169471]
[1763456903469,0.08676688,91080.0,91079.0,0.04344471]
[1763456904471,0.08676688,91080.0,91079.0,0.02169471]
[1763456905362,0.08676688,91080.0,91079.0,0.00016471]
[1763456905963,0.08576688,91080.0,91079.0,0.00016471]
[1763456906164,0.08676688,91080.0,91079.0,0.00016471]
[1763456906464,0.08676688,91080.0,91079.0,4.71e-06]
[1763456906665,0.04722803,91080.0,91079.0,4.71e-06]
[1763456908863,0.04622803,91080.0,91079.0,4.71e-06]
[1763456909164,0.04722803,91080.0,91079.0,4.71e-06]
[1763456909474,0.04622803,91080.0,91079.0,4.71e-06]
[1763456909668,0.04722803,91080.0,91079.0,4.71e-06]
[1763456909868,0.04341,91067.0,91065.0,0.02950109]
[1763456910065,0.05606,91063.0,91061.0,0.02950109]
[1763456910264,0.04341,91049.0,91048.0,0.02950109]
[1763456910575,0.04341,91047.0,91046.0,0.00027459]
[1763456910763,0.04341,91047.0,91046.0,0.02356459]
[1763456910967,0.04341,91047.0,91046.0,0.04577459]
[1763456912069,0.00219803,91050.0,91049.0,0.0455]
[1763456914572,0.02447803,91050.0,91049.0,0.0455]
[1763456914772,0.02447803,91050.0,91049.0,0.07538631]
[1763456915378,0.04560803,91050.0,91049.0,0.07538631]
[1763456915586,0.02447803,91050.0,91049.0,0.07538631]
[1763456915774,0.04560803,91050.0,91049.0,0.07538631]
[1763456917773,0.04560803,91050.0,91049.0,0.10487954]
[1763456918578,0.04560803,91050.0,91049.0,0.07538631]
[1763456920470,0.04560803,91050.0,91049.0,0.05317631]
[1763456920667,0.04560803,91050.0,91049.0,0.02988631]
[1763456921275,0.04560803,91050.0,91049.0,0.07538631]
[1763456921477,0.04560803,91050.0,91049.0,0.02988631]
[1763456924276,0.04560803,91050.0,91049.0,0.05937954]
[1763456928886,0.04560803,91050.0,91049.0,0.10487954]
[1763456929090,0.04560803,91050.0,91049.0,0.11787954]
[1763456929287,0.00219803,91050.0,91049.0,0.08838631]
[1763456930889,0.05606,91084.0,91083.0,0.02329]
[1763456931083,0.02228,91071.0,91070.0,0.0585]
[1763456931281,0.02228,91071.0,91070.0,0.08843497]
[1763456931985,0.04341,91071.0,91070.0,0.08843497]
[1763456932379,0.04341,91071.0,91070.0,0.02993497]
[1763456932683,0.04341,91071.0,91070.0,0.08843497]
[1763456932886,0.04441,91071.0,91070.0,0.08843497]
[1763456934194,0.04441,91071.0,91070.0,0.07543497]
[1763456934685,0.001,91071.0,91070.0,0.07543497]
[1763456934891,0.04357471,91080.0,91079.0,0.0455]
[1763456935097,0.04357471,91080.0,91079.0,0.07543497]
[1763456935484,0.04357471,91080.0,91079.0,4.97e-06]
[1763456935883,0.04357471,91080.0,91064.0,0.013]
[1763456935884,0.04341,91065.0,91064.0,0.0585]
[1763456936683,0.02228,91065.0,91064.0,0.0585]
[1763456937486,0.17656682,91080.0,91064.0,0.0585]
[1763456937991,0.04503,91071.0,91070.0,0.22108014]
[1763456938178,0.04503,91071.0,91070.0,0.04567803]
[1763456939288,0.04603,91071.0,91070.0,0.04567803]
[1763456939496,0.04603,91071.0,91070.0,0.05868803]
[1763456940397,0.001,91071.0,91070.0,0.05868803]
[1763456940895,0.04603,91071.0,91070.0,0.05868803]
[1763456941589,0.04503,91071.0,91070.0,0.05868803]
[1763456941797,0.04603,91071.0,91070.0,0.05868803]
[1763456942590,0.04603,91071.0,91070.0,0.00219803]